bitfinex-derivatives/quotes_SOLF0:USTF0_20250202
["timestamp","ask_amount","ask_price","bid_price","bid_amount"]
[1738460177991,0.03187918,218.19,218.14,0.03476472]
[1738460178896,4.5846,218.16,218.14,0.03476472]
[1738460179394,4.5846,218.15,218.14,0.03476472]
[1738460190494,1.4581,218.18,218.07,12.48224243]
[1738460190698,1.4581,218.18,218.05,4.5867]
[1738460191104,1.4581,218.18,218.04,12.48224243]
[1738460191303,4.5857,218.11,218.06,4.5864]
[1738460191705,4.6157452,218.11,218.06,4.60790058]
[1738460192004,0.0300452,218.11,218.06,0.02150058]
[1738460193106,0.0300452,218.11,218.07,12.48224243]
[1738460194507,0.0300452,218.11,218.07,17.06854243]
[1738460194710,0.0300452,218.11,218.07,12.48224243]
[1738460195005,0.0300452,218.11,218.1,17.06794243]
[1738460195206,0.0300452,218.11,218.1,12.48224243]
[1738460197505,0.0300452,218.11,218.08,4.5859]
[1738460197906,0.0300452,218.11,218.07,12.48224243]
[1738460199309,0.0300452,218.11,218.06,0.02150058]
[1738460201607,4.6157452,218.11,218.06,0.02150058]
[1738460202209,0.0300452,218.11,218.06,0.02150058]
[1738460202409,4.5859,218.09,218.06,0.02150058]
[1738460203706,4.5859,218.09,218.07,7.99424344]
[1738460204107,0.0300452,218.11,218.07,7.99424344]
[1738460204302,4.5861,218.08,218.06,0.02150058]
[1738460209811,0.0300452,218.11,218.07,7.99424344]
[1738460210006,0.0300452,218.11,218.09,7.99424344]
[1738460210819,4.6156452,218.11,218.09,7.99424344]
[1738460211015,4.6156452,218.11,218.07,7.99424344]
[1738460211316,4.5858,218.1,218.07,7.99424344]
[1738460213113,4.6155452,218.11,218.07,7.99424344]
[1738460216015,0.0300452,218.11,218.07,7.99424344]
[1738460216217,0.0300452,218.11,218.07,12.58044344]
[1738460216410,0.0300452,218.11,218.07,7.99424344]
[1738460216617,0.0300452,218.11,218.08,2.968176]
[1738460216919,4.6155452,218.11,218.07,7.99424344]
[1738460217916,4.6155452,218.11,218.08,2.96937525]
[1738460218215,4.6155452,218.11,218.07,7.99424344]
[1738460218415,4.6155452,218.11,218.08,2.97099249]
[1738460218614,4.6155452,218.11,218.07,7.99424344]
[1738460218810,4.6155452,218.11,218.08,2.97084342]
[1738460219014,4.6155452,218.11,218.07,7.99424344]
[1738460219208,4.6155452,218.11,218.08,2.9705521]
[1738460219517,4.6155452,218.11,218.09,2.9705521]
[1738460219816,4.6155452,218.11,218.07,7.99424344]
[1738460220016,4.6155452,218.11,218.08,2.97166138]
[1738460220218,0.0300452,218.11,218.09,2.97166138]
[1738460220422,0.0300452,218.11,218.1,2.97166138]
[1738460220717,0.0300452,218.11,218.07,12.58044344]
[1738460221016,0.0300452,218.11,218.08,2.97313538]
[1738460221216,0.0300452,218.11,218.07,12.58044344]
[1738460221416,0.0300452,218.11,218.08,2.97384712]
[1738460221617,0.0300452,218.11,218.07,12.58044344]
[1738460221815,0.0300452,218.11,218.08,2.97354116]
[1738460222011,0.0300452,218.11,218.07,12.58044344]
[1738460222215,0.0300452,218.11,218.08,2.97343417]
[1738460222414,0.0300452,218.11,218.07,12.58044344]
[1738460222616,0.0300452,218.11,218.08,2.97379281]
[1738460222817,0.0300452,218.11,218.07,12.58044344]
[1738460223118,0.0300452,218.11,218.08,2.97441395]
[1738460223318,0.0300452,218.11,218.07,12.58044344]
[1738460223520,0.0300452,218.11,218.08,2.97477457]
[1738460223718,4.6155452,218.11,218.07,12.58044344]
[1738460225121,4.6155452,218.11,218.07,7.99424344]
[1738460228123,4.6155452,218.11,218.08,2.97659515]
[1738460228424,4.6155452,218.11,218.07,7.99424344]
[1738460229122,4.6155452,218.11,218.08,2.976688]
[1738460229325,4.6155452,218.11,218.07,7.99424344]
[1738460229623,4.6155452,218.11,218.08,2.97678794]
[1738460229826,4.6155452,218.11,218.07,7.99424344]
[1738460230018,4.6155452,218.11,218.08,2.97651824]
[1738460230216,4.6155452,218.11,218.09,7.99424344]
[1738460232022,0.0300452,218.11,218.09,7.99424344]
[1738460232323,0.0300452,218.11,218.1,2.97598968]
[1738460232526,1.4268,218.2,218.1,2.97598968]
[1738460232828,1.4268,218.2,218.15,7.99424344]
[1738460233623,7.99424344,218.16,218.09,7.99424344]
[1738460233924,7.99424344,218.16,218.07,7.99424344]
[1738460234120,7.99424344,218.16,218.1,0.03501226]
[1738460234326,0.03428117,218.15,218.1,0.03501226]
[1738460234727,4.5849,218.14,218.1,0.03501226]
[1738460235222,0.03428117,218.15,218.11,7.99424344]
[1738460235427,0.03428117,218.15,218.13,7.99424344]
[1738460237725,0.03428117,218.15,218.14,4.5848]
[1738460237930,5.23889074,218.22,218.14,2.97421874]
[1738460238128,0.65569074,218.22,218.2,7.99424344]
[1738460239533,0.03123988,218.23,218.2,7.99424344]
[1738460240931,0.03123988,218.23,218.19,0.03194409]
[1738460242732,0.03123988,218.23,218.2,7.99424344]
[1738460243929,0.03123988,218.23,218.19,0.03194409]
[1738460244130,12.57784344,218.2,218.19,0.03194409]
[1738460244329,7.99424344,218.2,218.1,7.99424344]
[1738460245429,0.03337719,218.17,218.13,0.03243183]
[1738460246032,4.5846,218.15,218.13,0.03243183]
[1738460246231,0.03337719,218.17,218.13,0.03243183]
[1738460246527,4.5848,218.14,218.13,0.03243183]
[1738460247932,0.03337719,218.17,218.13,0.03243183]
[1738460248531,4.61757719,218.17,218.13,0.03243183]
[1738460249228,0.03337719,218.17,218.13,0.03243183]
[1738460249433,0.03337719,218.17,218.14,7.99424344]
[1738460250239,0.03337719,218.17,218.16,7.99424344]
[1738460251038,0.03337719,218.17,218.16,12.57864344]
[1738460253547,0.03337719,218.17,218.16,15.54472639]
[1738460254441,0.03337719,218.17,218.16,12.57864344]
[1738460256758,0.03337719,218.17,218.16,7.99424344]
[1738460256959,0.03337719,218.17,218.13,0.03243183]
[1738460258851,4.5844,218.16,218.13,0.03243183]
[1738460259359,12.57904344,218.14,218.13,0.03243183]
[1738460260458,7.99424344,218.14,218.06,7.99424344]
[1738460260661,4.5855,218.11,218.06,7.99424344]
[1738460261556,4.5854,218.12,218.06,7.99424344]
[1738460261857,0.03459856,218.11,218.06,8.01569447]
[1738460262160,0.03459856,218.11,218.06,0.02145103]
[1738460262161,7.99424344,218.1,218.06,0.02145103]
[1738460262364,4.5862,218.08,218.06,0.02145103]
[1738460268663,4.5859,218.09,218.06,8.01569447]
[1738460268863,0.03459856,218.11,218.06,8.01569447]
[1738460269065,4.5857,218.1,218.06,8.01569447]
[1738460270058,0.03459856,218.11,218.06,8.01569447]
[1738460270059,0.03459856,218.11,218.08,7.99424344]
[1738460270459,0.03459856,218.11,218.1,12.57994344]
[1738460271365,0.03459856,218.11,218.1,7.99424344]
[1738460274568,0.03459856,218.11,218.08,7.99424344]
[1738460274756,0.03459856,218.11,218.06,8.01569447]
[1738460275260,0.03459856,218.11,218.08,7.99424344]
[1738460275570,0.03459856,218.11,218.1,7.99424344]
[1738460277264,0.03459856,218.11,218.1,12.57994344]
[1738460280871,0.03459856,218.11,218.08,7.99424344]
[1738460281170,0.03459856,218.11,218.06,8.01569447]
[1738460281570,4.5859,218.09,218.06,8.01569447]
[1738460281971,4.5859,218.09,218.06,0.02145103]
[1738460286072,4.5859,218.09,218.06,8.01569447]
[1738460286576,0.03459856,218.11,218.06,12.60219447]
[1738460286873,0.03459856,218.11,218.08,7.99424344]
[1738460288075,0.03459856,218.11,218.06,8.01569447]
[1738460288471,4.5859,218.09,218.06,8.01569447]
[1738460289277,4.5857,218.1,218.06,8.01569447]
[1738460289975,0.03459856,218.11,218.06,8.01569447]
[1738460290176,4.62009856,218.11,218.06,8.01569447]
[1738460290573,0.03459856,218.11,218.06,8.01569447]
[1738460290773,4.5857,218.1,218.06,8.01569447]
[1738460291679,0.03459856,218.11,218.06,8.01569447]
[1738460291872,4.5861,218.08,218.06,0.02145103]
[1738460293379,4.5859,218.1,218.06,0.02145103]
[1738460293676,0.03459856,218.11,218.06,8.01569447]
[1738460294171,0.03459856,218.11,217.82,376.35195354]
[1738460294375,7.99424344,218.05,217.97,7.99424344]
[1738460294775,7.99424344,218.07,217.99,7.99424344]
[1738460295174,4.5869,218.05,217.99,7.99424344]
[1738460295375,4.6188797,218.05,217.99,7.99424344]
[1738460295872,0.0319797,218.05,217.99,7.99424344]
[1738460296078,4.5871,218.04,217.99,7.99424344]
[1738460297577,4.5873,218.03,217.99,7.99424344]
[1738460304781,0.0319797,218.05,218.01,7.99424344]
[1738460304976,2.9305,218.06,218.01,7.99424344]
[1738460305284,1.4836,218.11,218.05,7.99424344]
[1738460305480,0.03380171,218.06,218.05,7.99424344]
[1738460305880,0.03380171,218.06,218.03,7.99424344]
[1738460306077,9.47784344,218.11,218.03,7.99424344]
[1738460306276,0.03275908,218.07,218.03,7.99424344]
[1738460306887,4.61905908,218.07,218.03,7.99424344]
[1738460309790,8.02700252,218.07,217.99,7.99424344]
[1738460309991,7.99424344,218.07,217.99,7.99424344]
[1738460310189,0.03341447,218.05,217.99,7.99424344]
[1738460310487,4.5869,218.04,217.99,7.99424344]
[1738460310886,4.5872,218.03,217.99,7.99424344]
[1738460314183,7.99424344,218.01,217.94,7.99424344]
[1738460314385,7.99424344,218.01,217.95,2.97250262]
[1738460314587,0.03432544,218.0,217.96,7.99424344]
[1738460314894,0.03432544,218.0,217.98,7.99424344]
[1738460316295,0.03432544,218.0,217.96,12.58284344]
[1738460316793,7.99424344,217.97,217.9,7.99424344]
[1738460316994,7.99424344,217.95,217.86,7.99424344]
[1738460317185,7.99424344,217.93,217.86,7.99424344]
[1738460317389,4.5895,217.92,217.86,7.99424344]
[1738460317991,4.5899,217.9,217.84,7.99424344]
[1738460318288,8.02935346,217.91,217.82,7.99424344]
[1738460318494,7.99424344,217.89,217.83,2.97111641]
[1738460318792,7.99424344,217.89,217.82,7.99424344]
[1738460318993,8.02935346,217.91,217.82,7.99424344]
[1738460319294,8.02935346,217.91,217.84,7.99424344]
[1738460320086,0.03511002,217.91,217.88,7.99424344]
[1738460320794,0.03511002,217.91,217.88,12.58454344]
[1738460321390,0.03511002,217.91,217.88,7.99424344]
[1738460321588,0.03511002,217.91,217.86,4.5906]
[1738460321796,0.03511002,217.91,217.86,12.58484344]
[1738460322294,0.03511002,217.91,217.86,7.99424344]
[1738460322494,8.02935346,217.91,217.84,7.99424344]
[1738460322897,4.5899,217.9,217.84,7.99424344]
[1738460323097,8.02935346,217.91,217.84,7.99424344]
[1738460324796,8.02935346,217.91,217.84,12.58534344]
[1738460325899,0.03511002,217.91,217.86,7.99424344]
[1738460326098,9.46674344,217.95,217.88,7.99424344]
[1738460326398,0.03498185,217.91,217.86,7.99424344]
[1738460326590,0.03498185,217.91,217.86,12.58494344]
[1738460328402,0.03498185,217.91,217.86,7.99424344]
[1738460328698,0.03498185,217.91,217.76,4.3793]
[1738460328699,12.61902529,217.91,217.84,12.58524344]
[1738460328897,12.58404344,217.91,217.84,12.58524344]
[1738460329096,0.03276612,217.9,217.84,12.58524344]
[1738460331204,0.03276612,217.9,217.86,7.99424344]
[1738460331394,12.58374344,217.93,217.86,7.99424344]
[1738460331593,0.03151004,217.9,217.86,7.99424344]
[1738460333105,0.03151004,217.9,217.86,12.58474344]
[1738460337704,0.03151004,217.9,217.89,12.58434344]
[1738460337895,4.5891,217.95,217.89,12.58434344]
[1738460338100,0.0313517,217.92,217.89,12.58434344]
[1738460338701,0.0313517,217.92,217.89,7.99424344]
[1738460339005,0.0313517,217.92,217.9,4.5898]
[1738460340000,0.0313517,217.92,217.91,4.5897]
[1738460340206,0.0313517,217.92,217.91,12.58394344]
[1738460341206,0.0313517,217.92,217.91,4.5897]
[1738460341508,0.0313517,217.92,217.89,4.5899]
[1738460341903,0.0313517,217.92,217.85,7.99424344]
[1738460342109,7.99424344,217.91,217.83,7.99424344]
[1738460342311,8.02324426,217.91,217.83,7.99424344]
[1738460343811,4.5902,217.89,217.83,12.58554344]
[1738460344712,12.61304426,217.91,217.84,4.5911]
[1738460346209,0.02900082,217.91,217.88,4.5902]
[1738460346512,7.99424344,217.97,217.89,7.99424344]
[1738460346713,0.03370825,217.92,217.89,7.99424344]
[1738460347016,0.03370825,217.92,217.91,12.58394344]
[1738460347211,7.99424344,218.01,217.91,7.99424344]
[1738460347412,7.99424344,218.01,217.95,7.99424344]
[1738460347615,1.3973,218.02,217.95,7.99424344]
[1738460348422,0.03181214,218.01,217.96,0.03318664]
[1738460350219,4.61941214,218.01,217.96,0.03318664]
[1738460351317,0.03181214,218.01,217.96,0.03318664]
[1738460351523,12.50290337,217.97,217.86,1.5134]
[1738460352518,12.50290337,217.97,217.83,12.50290337]
[1738460352718,12.53372585,217.94,217.81,4.5299]
[1738460353017,4.5897,217.91,217.83,4.5912]
[1738460353217,12.50290337,217.94,217.81,1.5499]
[1738460353416,0.03494065,217.89,217.82,2.96182308]
[1738460353615,0.03494065,217.89,217.83,4.5914]
[1738460355024,0.03494065,217.89,217.84,4.5911]
[1738460356332,0.03494065,217.89,217.81,1.5499]
[1738460356625,0.03494065,217.89,217.83,12.50290337]
[1738460356825,0.03494065,217.89,217.84,2.96554452]
[1738460357029,0.03494065,217.89,217.86,4.5907]
[1738460357324,4.5903,217.88,217.8,12.50290337]
[1738460357525,4.5903,217.88,217.81,2.96760894]
[1738460357825,0.03308631,217.86,217.82,2.96760894]
[1738460358024,0.03308631,217.86,217.83,2.96760894]
[1738460358226,0.03308631,217.86,217.77,12.50290337]
[1738460358424,0.03308631,217.86,217.78,2.96908101]
[1738460358621,0.03308631,217.86,217.82,4.5916]
[1738460358925,0.03308631,217.86,217.83,2.96908101]
[1738460359225,0.03308631,217.86,217.83,4.5914]
[1738460359720,0.03308631,217.86,217.8,12.50290337]
[1738460359921,0.03308631,217.86,217.85,4.591]
[1738460361223,0.03308631,217.86,217.85,7.5634871]
[1738460362329,0.03308631,217.86,217.85,2.9724871]
[1738460362524,0.03308631,217.86,217.82,4.5915]
[1738460362824,0.03308631,217.86,217.83,2.97220501]
[1738460363030,0.03308631,217.86,217.84,2.97220501]
[1738460363329,0.03308631,217.86,217.81,1.5502]
[1738460363528,4.62388631,217.86,217.82,2.97202648]
[1738460363728,4.62388631,217.86,217.8,4.592]
[1738460363729,0.03308631,217.86,217.83,2.97202648]
[1738460363928,0.03308631,217.86,217.8,4.592]
[1738460364119,0.03308631,217.86,217.81,2.97269044]
[1738460364322,0.03308631,217.86,217.82,2.97269044]
[1738460364520,0.03308631,217.86,217.83,2.97269044]
[1738460364720,0.03308631,217.86,217.8,4.592]
[1738460364921,0.03308631,217.86,217.81,2.97257101]
[1738460365124,0.03308631,217.86,217.82,2.97257101]
[1738460365321,4.591,217.85,217.77,12.50290337]
[1738460365524,4.591,217.85,217.78,2.9725362]
[1738460365726,4.591,217.85,217.79,2.9725362]
[1738460365927,4.591,217.85,217.8,2.9725362]
[1738460366122,4.591,217.85,217.81,2.9725362]
[1738460366431,4.591,217.85,217.77,12.50290337]
[1738460366632,0.03308631,217.86,217.78,2.97257596]
[1738460366834,4.62378631,217.86,217.79,7.56457596]
[1738460367033,4.62378631,217.86,217.8,2.97257596]
[1738460367233,0.03308631,217.86,217.81,2.97257596]
[1738460367432,0.03308631,217.86,217.8,4.592]
[1738460367732,0.03308631,217.86,217.81,2.97213706]
[1738460367934,0.03308631,217.86,217.8,4.592]
[1738460368132,0.03308631,217.86,217.81,2.97235723]
[1738460368333,0.03308631,217.86,217.8,4.592]
[1738460368533,0.03308631,217.86,217.81,2.9720233]
[1738460368832,0.03308631,217.86,217.8,4.592]
[1738460369034,4.62378631,217.86,217.81,2.97285537]
[1738460369228,4.62378631,217.86,217.8,4.592]
[1738460369431,4.62378631,217.86,217.81,2.97302408]
[1738460369630,4.62378631,217.86,217.8,4.592]
[1738460369933,0.03308631,217.86,217.81,2.97351083]
[1738460370133,0.03308631,217.86,217.82,2.97351083]
[1738460370431,0.03308631,217.86,217.8,12.50290337]
[1738460370625,0.03308631,217.86,217.82,4.5914]
[1738460371032,0.03308631,217.86,217.83,2.97344]
[1738460371235,0.03308631,217.86,217.8,12.50290337]
[1738460371536,0.03308631,217.86,217.81,2.97322838]
[1738460371833,0.03308631,217.86,217.82,2.97322838]
[1738460372033,0.03308631,217.86,217.84,4.5912]
[1738460372527,12.50290337,217.94,217.8,12.50290337]
[1738460372528,1.5002,217.95,217.89,4.59]
[1738460372937,1.5002,217.95,217.86,12.50290337]
[1738460373124,1.5002,217.95,217.87,2.97134413]
[1738460373434,1.5002,217.95,217.88,2.97129436]
[1738460373633,1.5002,217.95,217.87,4.5904]
[1738460373936,0.03061309,217.94,217.89,0.02960312]
[1738460374833,4.5893,217.93,217.89,0.02960312]
[1738460375334,4.5907,217.87,217.79,4.5921]
[1738460375635,12.50290337,217.91,217.8,2.97389458]
[1738460375828,12.50290337,217.91,217.81,2.97389458]
[1738460376029,4.5903,217.88,217.82,2.97389458]
[1738460376229,4.5903,217.88,217.83,2.97389458]
[1738460376429,0.03231907,217.87,217.77,12.50290337]
[1738460376633,0.03231907,217.87,217.81,4.5917]
[1738460376837,0.03231907,217.87,217.82,2.97396733]
[1738460377032,0.03231907,217.87,217.77,12.50290337]
[1738460377233,0.03231907,217.87,217.78,2.9742462]
[1738460377533,4.591,217.85,217.79,2.9742462]
[1738460377734,4.591,217.85,217.77,4.5926]
[1738460377735,4.591,217.85,217.8,2.9742462]
[1738460377934,4.591,217.85,217.77,4.5926]
[1738460378233,4.591,217.85,217.78,2.97487639]
[1738460378434,4.591,217.85,217.77,4.5926]
[1738460378635,4.591,217.85,217.78,7.56572577]
[1738460378933,4.591,217.85,217.78,4.5924]
[1738460379134,0.03049586,217.84,217.78,4.5924]
[1738460382837,0.03049586,217.84,217.79,4.5921]
[1738460383039,0.03049586,217.84,217.8,12.50290337]
[1738460383438,0.03049586,217.84,217.81,2.97005749]
[1738460383638,0.03049586,217.84,217.82,2.9698772]
[1738460383835,0.03049586,217.84,217.83,7.5612772]
[1738460384133,1.4342,217.94,217.83,15.47278057]
[1738460384340,1.4342,217.94,217.86,12.50290337]
[1738460384633,1.4735,217.97,217.87,2.96817494]
[1738460384838,1.4735,217.97,217.86,12.50290337]
[1738460385139,1.4735,217.97,217.87,2.97034318]
[1738460385337,0.03116703,217.94,217.89,0.0315932]
[1738460385740,0.03116703,217.94,217.89,4.6215932]
[1738460386143,0.03116703,217.94,217.89,0.0315932]
[1738460386445,0.03116703,217.94,217.91,4.5897]
[1738460386943,0.03116703,217.94,217.89,0.0315932]
[1738460387143,0.03116703,217.94,217.92,4.5894]
[1738460387645,4.5876,218.02,217.93,2.96500765]
[1738460387839,4.5876,218.02,217.9,2.9083]
[1738460388141,13.15914758,218.03,217.91,2.96437639]
[1738460388340,13.15914758,218.03,217.92,2.96437639]
[1738460388540,13.15914758,218.03,217.9,2.9083]
[1738460388541,13.15914758,218.03,217.93,2.96437639]
[1738460388743,0.03169069,218.0,217.95,0.0343896]
[1738460389541,4.588,217.99,217.95,0.0343896]
[1738460394844,4.5883,217.98,217.95,0.0343896]
[1738460395148,0.03169069,218.0,217.95,0.0343896]
[1738460395541,4.61969069,218.0,217.95,0.0343896]
[1738460398650,4.5881,217.99,217.95,0.0343896]
[1738460400553,0.03169069,218.0,217.95,0.0343896]
[1738460400754,4.5882,217.98,217.95,0.0343896]
[1738460404058,4.5886,217.96,217.95,0.0343896]
[1738460404960,12.50290337,217.97,217.87,4.5903]
[1738460405162,4.5894,217.93,217.87,4.5903]
[1738460406257,4.5897,217.91,217.88,0.0310579]
[1738460406559,0.03427476,217.92,217.88,0.0310579]
[1738460407166,4.5901,217.89,217.88,0.0310579]
[1738460410858,0.03427476,217.92,217.88,0.0310579]
[1738460413280,4.5901,217.89,217.88,0.0310579]
[1738460414977,4.5899,217.91,217.88,0.0310579]
[1738460415278,0.03427476,217.92,217.88,0.0310579]
[1738460415969,4.5899,217.9,217.88,0.0310579]
[1738460418476,0.03427476,217.92,217.88,0.0310579]
[1738460419781,4.5899,217.9,217.88,0.0310579]
[1738460419982,0.03427476,217.92,217.88,0.0310579]
[1738460421080,0.03427476,217.92,217.88,4.6213579]
[1738460421283,0.03427476,217.92,217.88,0.0310579]
[1738460421684,4.62377476,217.92,217.88,0.0310579]
[1738460424481,0.03427476,217.92,217.88,0.0310579]
[1738460424786,4.59,217.9,217.88,0.0310579]
[1738460425486,0.03427476,217.92,217.88,0.0310579]
[1738460425787,4.5901,217.89,217.88,0.0310579]
[1738460425981,13.93200337,217.91,217.75,16.81490337]
[1738460426181,1.5273,217.9,217.76,2.97156534]
[1738460426388,4.5914,217.84,217.78,4.5923]
[1738460426687,1.5273,217.9,217.79,2.97219033]
[1738460426881,4.5915,217.83,217.77,4.5926]
[1738460427082,0.03320138,217.87,217.77,4.5926]
[1738460427280,12.50290337,217.88,217.72,12.50290337]
[1738460427485,1.5273,217.9,217.72,12.50290337]
[1738460427486,4.5922,217.8,217.73,7.56603599]
[1738460427784,12.50290337,217.85,217.67,140.26288836]
[1738460427785,12.50290337,217.85,217.74,2.97273599]
[1738460428084,0.03038679,217.79,217.67,140.26288836]
[1738460428291,0.03038679,217.79,217.68,2.97442456]
[1738460428591,4.5931,217.75,217.69,2.97442456]
[1738460428796,2.9858,217.81,217.7,2.97442456]
[1738460429091,0.03233827,217.74,217.71,2.97442456]
[1738460429290,0.03233827,217.74,217.69,12.50290337]
[1738460429490,0.03233827,217.74,217.7,2.97174631]
[1738460429791,0.03233827,217.74,217.71,2.97174631]
[1738460429990,0.03233827,217.74,217.72,2.97174631]
[1738460430188,0.03233827,217.74,217.69,17.09710337]
[1738460430489,0.03233827,217.74,217.7,2.97216709]
[1738460430692,0.03233827,217.74,217.71,2.97216709]
[1738460430893,0.03233827,217.74,217.71,4.5939]
[1738460431593,0.03233827,217.74,217.72,2.96979566]
[1738460431888,0.03233827,217.74,217.73,2.96950327]
[1738460432392,2.9244,217.87,217.77,4.5925]
[1738460432693,4.5911,217.85,217.77,4.5925]
[1738460433489,0.02918611,217.83,217.79,0.03308466]
[1738460434189,4.592,217.81,217.79,0.03308466]
[1738460434995,0.02918611,217.83,217.79,0.03308466]
[1738460436193,12.50290337,217.82,217.66,12.50290337]
[1738460436396,12.50290337,217.79,217.68,2.96842309]
[1738460436596,12.50290337,217.79,217.69,2.96874411]
[1738460436797,12.50290337,217.79,217.66,12.50290337]
[1738460437000,12.50290337,217.79,217.68,2.96884793]
[1738460437200,12.50290337,217.79,217.66,12.50290337]
[1738460437401,0.03447783,217.76,217.68,2.96919479]
[1738460437604,0.03447783,217.76,217.66,12.50290337]
[1738460437902,4.5931,217.75,217.69,4.5943]
[1738460439102,4.5931,217.75,217.68,4.5945]
[1738460441901,0.03447783,217.76,217.66,12.50290337]
[1738460442096,4.5933,217.74,217.66,17.09770337]
[1738460442698,4.5935,217.73,217.66,17.09770337]
[1738460442902,0.03447783,217.76,217.66,17.09770337]
[1738460443105,0.03447783,217.76,217.66,12.50290337]
[1738460443307,4.5937,217.72,217.64,4.5952]
[1738460443703,0.03228232,217.7,217.65,4.595]
[1738460444311,0.03228232,217.7,217.63,12.50290337]
[1738460445805,0.03228232,217.7,217.66,4.5949]
[1738460446208,4.62638232,217.7,217.63,12.50290337]
[1738460446399,4.62638232,217.7,217.64,2.96622076]
[1738460446603,4.62638232,217.7,217.65,2.96622076]
[1738460446808,4.62638232,217.7,217.64,4.5954]
[1738460447106,4.62638232,217.7,217.65,2.96593025]
[1738460447410,4.62638232,217.7,217.63,12.50290337]
[1738460447606,4.62638232,217.7,217.64,2.9664977]
[1738460447909,4.62638232,217.7,217.65,2.9664977]
[1738460448111,4.62638232,217.7,217.63,12.50290337]
[1738460448305,4.62638232,217.7,217.64,2.96673586]
[1738460448505,4.62638232,217.7,217.63,12.50290337]
[1738460448713,4.62638232,217.7,217.64,2.96657216]
[1738460448912,4.62638232,217.7,217.64,4.5953]
[1738460449101,4.62638232,217.7,217.65,2.96638534]
[1738460449402,4.62638232,217.7,217.64,4.5953]
[1738460449601,4.62638232,217.7,217.65,2.96648406]
[1738460449801,4.62638232,217.7,217.64,4.5953]
[1738460450007,4.62638232,217.7,217.65,2.96662782]
[1738460450205,4.62638232,217.7,217.64,4.5953]
[1738460450408,4.62638232,217.7,217.65,2.96637073]
[1738460450608,4.62638232,217.7,217.64,4.5953]
[1738460450609,0.03228232,217.7,217.63,12.50290337]
[1738460450806,0.03228232,217.7,217.64,2.96582404]
[1738460451002,0.03228232,217.7,217.6,12.50290337]
[1738460451200,0.03228232,217.7,217.61,2.96654848]
[1738460451410,0.03228232,217.7,217.62,2.96654848]
[1738460451610,0.03228232,217.7,217.63,2.96654848]
[1738460451909,4.5944,217.69,217.63,4.5955]
[1738460452210,4.5944,217.69,217.64,2.96629406]
[1738460452411,4.5944,217.69,217.63,4.5955]
[1738460453305,0.03228232,217.7,217.6,12.50290337]
[1738460453512,4.5949,217.67,217.6,12.50290337]
[1738460454812,4.5949,217.67,217.61,4.596]
[1738460456214,0.03228232,217.7,217.6,12.50290337]
[1738460456414,4.595,217.66,217.59,4.5962]
[1738460456921,0.02949934,217.65,217.59,4.5962]
[1738460457912,0.02949934,217.65,217.57,12.50290337]
[1738460458310,0.02949934,217.65,217.58,2.96383879]
[1738460458512,0.02949934,217.65,217.6,12.50290337]
[1738460458908,0.02949934,217.65,217.6,17.09890337]
[1738460459414,0.02949934,217.65,217.6,12.50290337]
[1738460459916,0.02949934,217.65,217.57,12.50290337]
[1738460460216,4.5948,217.67,217.57,12.50290337]
[1738460460514,0.03185698,217.63,217.57,12.50290337]
[1738460460916,0.03185698,217.63,217.6,4.5962]
[1738460461415,0.03185698,217.63,217.61,2.96437941]
[1738460461607,0.03185698,217.63,217.6,4.5962]
[1738460461811,0.03185698,217.63,217.61,2.9642755]
[1738460462013,0.03185698,217.63,217.62,4.5958]
[1738460462221,2.804,217.77,217.62,2.96407975]
[1738460462420,2.804,217.77,217.66,12.50290337]
[1738460462621,2.804,217.77,217.63,12.50290337]
[1738460463117,4.5942,217.7,217.63,17.09840337]
[1738460463417,0.03325489,217.69,217.64,2.99766529]
[1738460463617,0.03325489,217.69,217.66,12.50290337]
[1738460464718,0.03325489,217.69,217.66,17.09780337]
[1738460465215,0.03325489,217.69,217.66,12.50290337]
[1738460465420,0.03325489,217.69,217.67,2.96645844]
[1738460465718,0.03325489,217.69,217.65,4.5952]
[1738460465918,0.03325489,217.69,217.66,2.96678379]
[1738460466220,0.03325489,217.69,217.67,2.96678379]
[1738460466414,0.03325489,217.69,217.64,0.03185698]
[1738460468318,4.5952,217.65,217.64,0.03185698]
[1738460469619,0.03325489,217.69,217.64,0.03185698]
[1738460469821,4.5949,217.67,217.64,0.03185698]
[1738460470222,4.595,217.66,217.64,0.03185698]
[1738460470818,0.03325489,217.69,217.57,12.50290337]
[1738460471122,2.9541,217.69,217.54,12.50290337]
[1738460471318,12.50290337,217.67,217.54,12.50290337]
[1738460471519,4.5961,217.61,217.54,17.10040337]
[1738460471714,12.50290337,217.67,217.54,12.50290337]
[1738460472122,4.596,217.61,217.55,4.5973]
[1738460473619,4.596,217.61,217.54,12.50290337]
[1738460474923,0.0315655,217.63,217.57,12.50290337]
[1738460475222,2.9541,217.69,217.57,12.50290337]
[1738460475522,0.03108657,217.62,217.57,12.50290337]
[1738460475720,0.03108657,217.62,217.57,17.09970337]